Cogmind - Beta 16 @@@ ROGUE MODE // 2025.12.24 @ 20:06:36 Player: lvl5hm Result: Destroyed by G-47 Trooper with Particle Gun Performance ------------- Evolutions (0) 0 Regions Visited (1) 200 Robots Destroyed (15) 75 Value Destroyed (173) 173 Prototype IDs (0) 0 Alien Tech Used (0) 0 Bonus (0) 0 TOTAL SCORE: 448 Bonus ------- None Cogmind --------- Core Integrity 0/250 Matter 288/300 Energy 100/100 System Corruption 0% Temperature Cool (9) Movement Core (700) Ox13 Location -10/Materials Parts ------- > --- POWER (1) -------- (None) > --- PROPULSION (2) --- (None) > --- UTILITY (2) ------ High-capacity Storage Unit > --- WEAPON (2) ------- Light Assault Rifle > --- INVENTORY (20) --- Seismic Detector Hammer Peak State ------------ > --- POWER ------------ Ion Engine > --- PROPULSION ------- Light Treads Light Treads > --- UTILITY ---------- Small Storage Unit Seismic Detector > --- WEAPON ----------- Medium Laser Light Assault Rifle > --- INVENTORY -------- (None) [Rating: 7] Favorites ----------- Power Ion Engine Engine Ion Engine Propulsion Light Treads Treads Light Treads Utility Seismic Detector Device Seismic Detector Storage High-capacity Storage Unit Weapon Light Assault Rifle Energy Gun Medium Laser Ballistic Gun Light Assault Rifle Build | -11 -10 ------- Run | Yrd Mat Slots Evolved . | . . Power . | . . Propulsion . | . . Utility . | . . Weapon . | . . Parts Attached 10 | 7 3 Power 1 | 1 . Engine 1 | 1 . Core . | . . Reactor . | . . Propulsion 2 | 2 . Treads 2 | 2 . Leg . | . . Wheel . | . . Hover . | . . Flight . | . . Utility 4 | 2 2 Device 2 | 1 1 Storage 2 | 1 1 Processor . | . . Hackware . | . . Protection . | . . Artifact . | . . Weapon 3 | 2 1 Energy Gun 1 | 1 . Energy Cannon . | . . Ballistic Gun 2 | 1 1 Ballistic Cannon . | . . Launcher . | . . Special Weapon . | . . Impact Weapon . | . . Slashing Weapon . | . . Piercing Weapon . | . . Special Melee Weapon . | . . Unidentified Prototypes . | . . Parts Lost 6 | . 6 Power 1 | . 1 Propulsion 2 | . 2 Utility 1 | . 1 Weapon 2 | . 2 Highest Loss Streak 6 | . 6 To Critical Strikes . | . . Average Backups 1 | . 1 Power . | . . Propulsion . | . . Utility . | . 1 Weapon . | . . Tool/Special . | . . Unused Backups 2 | . 2 Power . | . . Propulsion . | . . Utility 1 | . 1 Weapon 1 | . 1 Tool/Special . | . . Average Slot Usage (%) 94 | . 94 Engine 13 | . 13 Treads 26 | . 26 Device 12 | . 12 Storage 14 | . 14 Energy Gun 12 | . 12 Ballistic Gun 14 | . 14 Peak Build Rating 7 | 7 7 Average Rating 6 | 6 6 On Entrance 3 | . 7 Avg Prop Armor Cover (%) . | . . Naked Turns . | . . Heaviest Build 49 | 14 49 Greatest Support 40 | 40 40 Greatest Overweight (x) 2 | 1 2 Average Overweight (x) . | . . Largest Inventory Capacity 20 | 8 20 Average Capacity 14 | 7 18 Most Carried 3 | 1 3 Average Carried 1 | . 1 Final Capacity 20 | 8 20 Final Carried 2 | 1 2 Class Distribution -------------------- 100% | Mutant Dominant Class ---------------- Mutant | -10/Materials Resources | -11 -10 ----------- Run | Yrd Mat Matter Collected 310 | 283 27 Remotely . | . . Salvage Created 375 | 223 152 Parts 32 | 21 11 Haulers Intercepted . | . . Recyclers Shooed . | . . Parts Field Recycled . | . . Retrieved Matter . | . . Parts Self-Destructed . | . . Prevented . | . . Parts Restored . | . . Kills | -11 -10 ------- Run | Yrd Mat Combat Hostiles Destroyed 7 | . 7 Guns 7 | . 7 Classes Destroyed 4 | 2 2 Tunneler 7 | 7 . Recycler 1 | 1 . Swarmer 5 | . 5 Grunt 2 | . 2 Best Kill Streak 4 | 4 4 Combat Bots Only 4 | . 4 Max Kills in Single Turn 1 | 1 1 Gunslinging . | . . Exploded . | . . Melee . | . . Uniques/NPCs Destroyed . | . . Combat | -11 -10 -------- Run | Yrd Mat Hostile Shots Fired 86 | . 86 Missed 20 | . 20 Hits 66 | . 66 Projectile 66 | . 66 Critical Strikes 1 | . 1 Damage Taken 843 | . 843 Core 255 | . 255 Absorbed by Shields . | . . Core Remaining (%) 100 | 100 . Volleys Fired 50 | 13 37 Largest 2 | 2 2 Hottest 70 | 70 70 Shots Fired 82 | 26 56 Gun 82 | 26 56 Cannon . | . . Launcher . | . . Special . | . . Kinetic 52 | 13 39 Thermal 30 | 13 17 Explosive . | . . Electromagnetic . | . . Robot Hit Streak 12 | 12 11 Robot Miss Streak 6 | 2 6 Penetration Max . | . . Secondary Targets 3 | . 3 Max Gunslinging Chain 1 | . 1 Shots Hit Robots 51 | 16 35 Core Hits 28 | 12 16 Critical Kills . | . . Critical Parts Destroyed . | . . Critical Strikes 1 | . 1 Burn 1 | . 1 Melee Attacks . | . . Impact . | . . Slashing . | . . Piercing . | . . Sneak Attacks . | . . Combat Hostiles . | . . Follow-up Attacks . | . . Damage Inflicted 511 | 179 332 Guns 508 | 179 329 Cannons . | . . Explosions . | . . Melee . | . . Ramming 3 | . 3 Kinetic 256 | 53 203 Thermal 252 | 126 126 Explosive . | . . Electromagnetic . | . . Impact . | . . Slashing . | . . Piercing . | . . Highest Corruption . | . . Average Corruption . | . . Corruption Purged . | . . Corruption Blocked . | . . Overload Shots . | . . Overflow Damage . | . . Projectiles . | . . Explosions . | . . Melee . | . . Knockbacks . | . . Impact . | . . Kinetic . | . . Secondary . | . . Self-Inflicted Damage . | . . Shots . | . . Rammed 1 | . 1 Targets Rammed 1 | . 1 Kicked . | . . Crushed . | . . Highest Temperature 308 | 80 308 Average Temperature 84 | 31 113 Received Heat Transfer 447 | . 447 Siege Activations . | . . Martial Activations . | . . Shielding Activations . | . . Robots Disrupted . | . . Combat Hostiles . | . . Robots Corrupted . | . . Combat Hostiles . | . . Parts Fried . | . . Impact Corruptions . | . . Robots Melted . | . . Combat Hostiles . | . . Parts Melted . | . . Heat Transferred 814 | 370 444 Parts Sabotaged . | . . Parts Stolen . | . . Parts Stripped . | . . Power Chain Reactions . | . . Alert | -11 -10 ------- Run | Yrd Mat Maximum Alert Level . | . . Low Security (%) 100 | 100 100 Level 1 . | . . Level 2 . | . . Level 3 . | . . Level 4 . | . . Level 5 . | . . High Security . | . . Max Security . | . . Peak Influence 138 | 10 138 Initial . | . . Average 18 | 1 25 Influence Increases 254 | 40 214 Destroy 0b10 Robot/C 140 | . 140 Destroy 0b10 Robot/NC 40 | 40 . Destroy Leader 30 | . 30 Successful Hack 14 | . 14 Lose Combat Pursuer 30 | . 30 Influence Decreases 170 | 40 130 Time Decay 110 | 40 70 Lost Part 60 | . 60 Squads Dispatched 1 | . 1 Investigation . | . . Extermination . | . . Reinforcement 1 | . 1 Assault . | . . Garrison . | . . Intercept . | . . Searches Triggered . | . . Construction Impeded . | . . Haulers Reinforced . | . . Active Scanning Responses . | . . Cargo Convoy Interrupts . | . . Stealth | -11 -10 --------- Run | Yrd Mat Distress Signals 2 | . 2 Communications Jammed . | . . Distress Signals . | . . Times Spotted 15 | . 15 Peak Tracking Total 7 | . 7 Tactical Retreats 1 | . 1 Traps | -11 -10 ------- Run | Yrd Mat Traps Triggered . | . . Indirectly . | . . Trap Hack Attempts . | . . Triggered . | . . Disarmed . | . . Reprogrammed . | . . Reused . | . . Traps Extracted . | . . Installed . | . . Triggered . | . . Machines | -11 -10 ---------- Run | Yrd Mat Machines Disabled . | . . Max in Single Turn . | . . Machines Repaired . | . . Machines Dismantled . | . . Machines Sabotaged . | . . Overloaded Fab Kills . | . . Hacking | -11 -10 --------- Run | Yrd Mat Machines Accessed 1 | . 1 Terminals 1 | . 1 Fabricators . | . . Repair Stations . | . . Recycling Units . | . . Scanalyzers . | . . Garrison Access . | . . Total Hacks 2 | . 2 Successful 1 | . 1 Failed 1 | . 1 Catastrophic . | . . Database Lockouts . | . . Manual 2 | . 2 Terminals 2 | . 2 Fabricators . | . . Repair Stations . | . . Recycling Units . | . . Scanalyzers . | . . Garrison Access . | . . Terminal Hacks . | . . Fabricator Hacks . | . . Repair Station Hacks . | . . Recycling Unit Hacks . | . . Scanalyzer . | . . Garrison Access Hacks . | . . Unauthorized Hacks 1 | . 1 Terminals 1 | . 1 Botnet 1 | . 1 Fabricators . | . . Repair Stations . | . . Recycling Units . | . . Scanalyzers . | . . Garrison Access . | . . Data Cores Recovered . | . . Used . | . . Hacking Detections 1 | . 1 Full Trace Events . | . . Feedback Events . | . . Feedback Blocked . | . . Robot Schematics Acquired . | . . Robots Built . | . . Authchips . | . . Time . | . . Total Robot Build Rating . | . . Part Schematics Acquired . | . . Parts Built . | . . Authchips . | . . Time . | . . Total Part Build Rating . | . . Part Studies Acquired . | . . Parts Repaired . | . . Time . | . . Parts Recycled . | . . Recycled Matter . | . . Retrieved Matter . | . . Retrieved Components . | . . Parts Scanalyzed . | . . Part Schematics Acquired . | . . Parts Damaged . | . . Bothacking | -11 -10 ------------ Run | Yrd Mat Used RIF Installer . | . . Robots Hacked . | . . Non-combat . | . . Combat . | . . Robot Hacks Applied . | . . Relay Couplers Released . | . . Fabnet Peak Effective % . | . . Robots Rewired . | . . Allies Hacked . | . . Hacks Repelled . | . . Allies | -11 -10 -------- Run | Yrd Mat Total Allies . | . . Largest Group . | . . Highest-Rated Group . | . . Highest-Rated Ally . | . . Total Orders . | . . Ally Attacks . | . . Total Damage . | . . Kills . | . . Allies Corrupted . | . . Allies Melted . | . . Intel | -11 -10 ------- Run | Yrd Mat Active Infowar (turns) 639 | 178 461 Seismic 639 | 178 461 Robot Analysis Total . | . . Derelict Logs Recovered . | . . Drone Launches . | . . Drone Recoveries . | . . Exploration | -11 -10 ------------- Run | Yrd Mat Turns Passed 764 | 228 536 Spaces Moved 255 | 65 190 Core 3 | 3 . Treads 252 | 62 190 Legs . | . . Wheels . | . . Hover . | . . Flight . | . . Fastest Speed 50 | 50 160 Average Speed 204 | 156 220 Slowest Speed 320 | 160 320 Overloaded Moves . | . . Propulsion Burnouts . | . . Robots Hopped . | . . Potential Cave-ins . | . . Cave-ins Triggered . | . . Exploration Rate (%) 21 | 5 37 Regions Visited 1 Branch Regions . Pre-discovered Areas . | . . Known Exits Taken . | . . Unknown Exits Taken 1 | 1 . Scrap Searched . | . . Spaces Dug . | . . Terrain Destroyed . | . . Melee . | . . Projectile . | . . AOE . | . . Terrain Rammed . | . . Walls Destroyed . | . . Machines Disabled . | . . Actions | -11 -10 --------- Run | Yrd Mat Total 421 | 165 256 Wait 102 | 80 22 Move 254 | 64 190 Hop . | . . Pick Up 2 | 1 1 Fast Attach 8 | 7 1 Attach . | . . Detach . | . . Swap 2 | . 2 Drop 2 | . 2 Fire 50 | 13 37 Melee . | . . Ram . | . . Kick . | . . Crush 1 | . 1 Escape Stasis . | . . Rewire . | . . Trap . | . . Miscellaneous . | . . Route ------- -11/Scrapyard -10/Materials (discovered 2 exits: [*Mat] / [*Min]) History --------- Turn | Location | Event 13 | -11/Scrapyard | Discovered new exit (range 14) 229 | -11/Scrapyard | Entered Materials 307 | -10/Materials | Build established: Mutant 517 | -10/Materials | Discovered new exit (range 12) 728 | -10/Materials | Core integrity fell below 50% 750 | -10/Materials | Discovered new exit (range 14) 758 | -10/Materials | Core integrity fell below 20% 765 | -10/Materials | Destroyed by G-47 Trooper with Particle Gun Last Messages --------------- 00706_ Med. Laser destroyed. 00707_ K-01 Serf collects debris. 00716_ M-13 Machinist repairs G-47 Trooper. 00720_ Lgt. Treads destroyed. 00727_ G-34 Mercenary destroyed. 00728_ K-01 Serf collects debris. 00736_ Ion Engine destroyed. 00740_ M-13 Machinist repairs K-01 Serf Sml. Matter Pod. 00741_ Slammed into W-16 Scout. 00742_ Acquired 27 matter. 00750_ EXIT=FOUND 00752_ Lgt. Treads destroyed. 00753_ R-06 Scavenger collects Lgt. Ion Engine. 00753_ Acquired Lgt. Assault Rifle. 00754_ M-13 Machinist repairs G-47 Trooper. 00757_ R-06 Scavenger collects Lgt. Ion Engine. 00759_ Lgt. Assault Rifle destroyed. 00760_ R-06 Scavenger collects Flight Unit. 00764_ R-06 Scavenger collects Wheel. Map ----- +----------------------------------------------------+ | ?????????????????????????????????????????????????? | | ?????????????????????????????????????????????????? | | ?????????????????????????????????????????????????? | | ?????????????????????????????????????????????????? | | ?????????????????????????????????????????????????? | | ?????????????????????????????????????????????????? | | ?????????????????????????????????????????????????? | | ?????????????????????????????????????????????????? | | ?????????????????????????????????????????????????? | | ?????????????????????????????????????????????????? | | ????????????????????????? ?????????????????????? | | ????????????????????????? !???????????????????? | | ????????????????????????? < "???????????????????? | | ????????????????????????? !???????????????????? | | ????????????????????????? k ????????????????????? | | ????????????????????????? ????????????????????? | | ??##########????????????? #????????????????????? | | ??# !!! #????????????# #####????????????????? | | ??#% !! #????????????+ ?????????????????? | | ### !! #????????????# ??????????????????? | | # #????????????# ???????????????????? | | # #????????????# #??????#####?????????? | | + """ #????????????# #?? ! #?????????? | | # """ ############## ## #?????????? | | # """ + g%%r%%%+ ????????????? | | ## ####### m%= @=[##???????????????????? | | ###########?????# * ##????????????????????? | | # #???????# #?????????????????????? | | + #???????# #?????????????????????? | | # #???????# #?????????????????????? | | #########???????# #?????????????????????? | | ########??######## #####?????????????????????? | | # #??# # =#?????????????????????????? | | # #??# + !%#?????????????????????????? | | # #??# # =#?????????????????????????? | | + !#??# # #???????????????########### | | # #??# ?# #???????????????# | | # #??# ?#k ################# """ "" | | ########??#####??# + #? ! """ "" | | ################## ########## """#??? """ "" | | ^ #????????# """#????? ? | | ###########+###+######????# """########+### | | #????????# #????# + | | #????????# """ #????# ! # ##### | | ######????????# """"" ############# #???# | | ??????????????# ! """"" + #???###### | | ??????????????# """"" ###############????????? | | ??????????????# """ #??????????????????????? | | ??????????????# #??????????????????????? | | ??????????????#############??????????????????????? | +----------------------------------------------------+ Best States ------------- Heat Dissipation 25 Energy Generation 10 Energy Capacity 250 Matter Stores 300 Matter Capacity 300 Sight Range 16 Terrain Scan Density 10 Evasion (%) 40 Recoil Reduction 2 Item Schematics ----------------- None Robot Schematics ------------------ None Fabricated ------------ Nothing Repaired ---------- Nothing Studied --------- None Alien Tech Used ----------------- None Achievements -------------- None Challenges ------------ None Game ------ Seed MissileRiotScythe Manual? 0 Play Time 00:06:20 Cumulative 321.9 hours Start 2025.12.24 @ 20:02:13 End 2025.12.24 @ 20:06:36 Sessions 1 Manual Loads 0 Difficulty Rogue Special Mode None Game No. 226 Rogue 223 Adventurer 3 Explorer 0 Win Type - Total 15 Types 8/1/3/1/0/0/0/1/0/1 Lore% 76 Gallery% 78 Achievement% 70 Wizard Run 0 Options --------- Layout 2 ASCII 0 Keyboard 1 Movement Arrows Keybinds 0 Fullscreen 1 Font 32/SmallcapsGlow Map View 50x44 Zoom Use 0% Tactical HUD 1 Map Filters NONE Filters NONE Steam 1 RUN: 73b169d3-ac16-41ba-881d-699af55c1353